bitfinex/quotes_BTCUSD_20241215
["timestamp","ask_amount","ask_price","bid_price","bid_amount"]
[1734288222530,0.0050223,103190.0,103180.0,0.318436]
[1734288224172,0.0047963,103190.0,103180.0,0.318436]
[1734288230050,0.0047963,103190.0,103180.0,0.3185222]
[1734288230287,0.0049687,103190.0,103180.0,0.3185222]
[1734288230926,0.1987857,103190.0,103180.0,8.62e-05]
[1734288235243,0.1986391,103190.0,103180.0,8.62e-05]
[1734288250976,0.0048221,103190.0,103180.0,8.62e-05]
[1734288251178,0.0048221,103190.0,103180.0,0.47990951]
[1734288251448,0.0048221,103190.0,103180.0,0.55032347]
[1734288252463,0.0048221,103190.0,103180.0,0.52670951]
[1734288253636,0.00328073,103190.0,103180.0,0.52670951]
[1734288255095,0.00328073,103190.0,103180.0,0.52602959]
[1734288256351,0.00328073,103190.0,103180.0,0.61301567]
[1734288257849,0.00328073,103190.0,103180.0,0.62553362]
[1734288259649,0.00328073,103190.0,103180.0,0.62560314]
[1734288260334,0.00328073,103190.0,103180.0,0.75618654]
[1734288260590,0.00328073,103190.0,103180.0,0.77557054]
[1734288262658,0.00328073,103190.0,103180.0,0.64498714]
[1734288264719,0.00328073,103190.0,103180.0,0.64507334]
[1734288265181,0.00328073,103190.0,103180.0,0.77565674]
[1734288267310,0.00328073,103190.0,103180.0,0.64507334]
[1734288268827,0.00328073,103190.0,103180.0,0.64506247]
[1734288271380,0.00328073,103190.0,103180.0,0.63254452]
[1734288272859,0.00328073,103190.0,103180.0,0.25592121]
[1734288273272,0.00328073,103190.0,103180.0,0.25591446]
[1734288273952,0.00328073,103190.0,103180.0,0.44975046]
[1734288274965,0.00328073,103190.0,103180.0,0.50773777]
[1734288281167,0.00328073,103190.0,103180.0,0.44975046]
[1734288281629,0.00328073,103190.0,103180.0,0.36271248]
[1734288282088,0.00328073,103190.0,103180.0,0.44975046]
[1734288282298,0.00328073,103190.0,103180.0,0.44975444]
[1734288283204,0.00328073,103190.0,103180.0,0.50774175]
[1734288283830,0.00328073,103190.0,103180.0,0.58594175]
[1734288285553,0.00328073,103190.0,103180.0,1.0207416]
[1734288286391,0.00328073,103190.0,103180.0,0.58594175]
[1734288286610,0.00328073,103190.0,103180.0,1.02042618]
[1734288287942,0.00328073,103190.0,103180.0,1.04404014]
[1734288288166,0.00328073,103190.0,103180.0,1.10202745]
[1734288289873,0.00328073,103190.0,103180.0,1.04404014]
[1734288290079,0.00328073,103190.0,103180.0,1.02042618]
[1734288290297,0.00328073,103190.0,103180.0,1.03978677]
[1734288291043,0.00328073,103190.0,103180.0,0.4138075]
[1734288292537,0.00328073,103190.0,103180.0,0.41385222]
[1734288293160,0.00328073,103190.0,103180.0,0.33565222]
[1734288294601,0.00328073,103190.0,103180.0,0.61628224]
[1734288295014,0.00328073,103190.0,103180.0,0.53893434]
[1734288295223,0.08198073,103190.0,103180.0,0.59692165]
[1734288295642,0.08198073,103190.0,103180.0,0.90109034]
[1734288296103,0.08198073,103190.0,103180.0,0.90147755]
[1734288297413,0.00328073,103190.0,103180.0,0.90147755]
[1734288298819,0.00328073,103190.0,103180.0,0.90156375]
[1734288300584,0.00328073,103190.0,103180.0,0.90158079]
[1734288300804,0.00328073,103190.0,103180.0,0.90258916]
[1734288301019,0.00328073,103190.0,103180.0,0.90162088]
[1734288301233,0.00328073,103190.0,103180.0,0.9894832]
[1734288301446,0.00328073,103190.0,103180.0,1.2938872]
[1734288301662,0.00328073,103190.0,103180.0,1.07596147]
[1734288301872,0.00328073,103190.0,103180.0,1.2938872]
[1734288303267,0.08328073,103190.0,103180.0,1.2938872]
[1734288307430,0.08328073,103190.0,103180.0,1.07596147]
[1734288316013,0.08328073,103190.0,103180.0,1.01797416]
[1734288316222,0.08328073,103190.0,103180.0,1.07596147]
[1734288317514,0.08328073,103190.0,103180.0,1.0759676]
[1734288319406,0.08328073,103190.0,103180.0,1.01798029]
[1734288320187,0.08328073,103190.0,103180.0,1.0759676]
[1734288320613,0.00328073,103190.0,103180.0,1.0759676]
[1734288320825,0.00328073,103190.0,103180.0,1.37342417]
[1734288321909,0.00328073,103190.0,103180.0,1.37317288]
[1734288324466,0.00328073,103190.0,103180.0,1.35160296]
[1734288325321,0.00328073,103190.0,103180.0,1.45065699]
[1734288325516,0.00328073,103190.0,103180.0,1.54045721]
[1734288325738,0.00328073,103190.0,103180.0,1.45330184]
[1734288325938,0.00328073,103190.0,103180.0,1.46999962]
[1734288326775,0.00328073,103190.0,103180.0,1.46929545]
[1734288328042,0.00328073,103190.0,103180.0,4.16179145]
[1734288328461,0.00328073,103190.0,103180.0,4.03106686]
[1734288328878,0.00328073,103190.0,103180.0,3.8567674]
[1734288329726,0.00328073,103190.0,103180.0,4.03102538]
[1734288329939,0.00328073,103190.0,103180.0,3.8567674]
[1734288330353,0.00328073,103190.0,103180.0,4.03102387]
[1734288330565,0.00328073,103190.0,103180.0,4.4132073]
[1734288331996,0.00328073,103190.0,103180.0,4.2389674]
[1734288333071,0.00328073,103190.0,103180.0,4.22226962]
[1734288333706,0.00328073,103190.0,103180.0,4.27065948]
[1734288333918,0.00328073,103190.0,103180.0,4.40130544]
[1734288334334,0.00328073,103190.0,103180.0,4.27065948]
[1734288334765,0.00328073,103190.0,103180.0,4.40129991]
[1734288334994,0.00328073,103190.0,103180.0,4.35035948]
[1734288335211,0.00328073,103190.0,103180.0,4.36713967]
[1734288335451,0.00328073,103190.0,103180.0,4.19294981]
[1734288335665,0.00328073,103190.0,103180.0,1.59755381]
[1734288335873,0.00328073,103190.0,103180.0,1.59589207]
[1734288336087,0.00328073,103190.0,103180.0,5.86487807]
[1734288336517,0.00328073,103190.0,103180.0,6.38889059]
[1734288336754,0.00328073,103190.0,103180.0,6.33090328]
[1734288338075,0.00328073,103190.0,103180.0,6.38889059]
[1734288338318,0.00328073,103190.0,103180.0,6.33090328]
[1734288338942,0.00328073,103190.0,103180.0,6.54851262]
[1734288339363,0.00328073,103190.0,103180.0,6.33090328]
[1734288340303,0.00328073,103190.0,103180.0,6.03773854]
[1734288340757,0.00328073,103190.0,103180.0,6.25529499]
[1734288340969,0.00328073,103190.0,103180.0,6.3132823]
[1734288341166,0.00328073,103190.0,103180.0,6.3860823]
[1734288341978,0.00328073,103190.0,103180.0,6.16852585]
[1734288343562,0.00328073,103190.0,103180.0,6.38601281]
[1734288344863,0.00328073,103190.0,103180.0,6.38534144]
[1734288345301,0.00328073,103190.0,103180.0,6.1678731]
[1734288345717,0.0001724,103190.0,103180.0,6.1678731]
[1734288346543,0.0001724,103190.0,103180.0,2.1887381]
[1734288346748,0.0001724,103190.0,103180.0,6.4577241]
[1734288346950,0.00387569,103190.0,103180.0,6.4577241]
[1734288347155,0.0001724,103190.0,103180.0,6.4577241]
[1734288349150,0.0001724,103190.0,103180.0,6.45550494]
[1734288352683,0.0001724,103190.0,103180.0,6.45686637]
[1734288354418,0.0001724,103190.0,103180.0,5.99586541]
[1734288354590,0.0001724,103190.0,103180.0,6.18970141]
[1734288358378,0.0001724,103190.0,103180.0,6.18937108]
[1734288358582,0.0001724,103190.0,103180.0,1.92038508]
[1734288358786,0.0001724,103190.0,103180.0,6.22810108]
[1734288358985,0.00387569,103190.0,103180.0,6.22810108]
[1734288359229,0.0001724,103190.0,103180.0,6.22810108]
[1734288361411,0.0796724,103190.0,103180.0,3.48687379]
[1734288361613,0.0796724,103190.0,103180.0,3.53410441]
[1734288361820,0.0833774,103190.0,103180.0,3.31682792]
[1734288362536,0.0833774,103190.0,103180.0,3.53410441]
[1734288363310,0.0833774,103190.0,103180.0,3.4013496]
[1734288363694,0.0833774,103190.0,103180.0,3.46987422]
[1734288364439,0.0833774,103190.0,103180.0,3.33950362]
[1734288364674,0.0833774,103190.0,103180.0,3.04970781]
[1734288364875,0.0833774,103190.0,103180.0,3.16568243]
[1734288365493,0.0833774,103190.0,103180.0,2.23205281]
[1734288365759,0.1302774,103190.0,103180.0,1.6053394]
[1734288365945,0.1302774,103190.0,103180.0,0.87106413]
[1734288366157,0.1302774,103190.0,103180.0,0.78410951]
[1734288366618,0.1302774,103190.0,103180.0,0.40190951]
[1734288366832,0.1302774,103190.0,103180.0,0.25190951]
[1734288368340,0.1302774,103190.0,103180.0,0.05798731]
[1734288368546,0.1302774,103190.0,103180.0,0.25182331]
[1734288368946,0.1302774,103190.0,103180.0,0.40182331]
[1734288369598,0.1302774,103190.0,103180.0,0.343836]
[1734288369814,0.1302774,103190.0,103180.0,0.40182331]
[1734288370079,0.3240944,103190.0,103180.0,0.20798731]
[1734288371857,0.3240944,103190.0,103180.0,0.15]
[1734288372096,0.319336,103180.0,103170.0,0.15]
[1734288372520,0.32301641,103180.0,103170.0,0.15]
[1734288372931,0.32301641,103180.0,103170.0,0.20798731]
[1734288373904,0.12918041,103180.0,103170.0,0.40184131]
[1734288377239,0.12918041,103180.0,103170.0,0.50089534]
[1734288377917,0.12918041,103180.0,103170.0,0.50098154]
[1734288379471,0.32301641,103180.0,103170.0,0.1500862]
[1734288382275,0.32301641,103180.0,103170.0,0.20807351]
[1734288388090,0.32301641,103180.0,103170.0,0.1500862]
[1734288388534,0.32301641,103180.0,103170.0,8.62e-05]
[1734288389200,0.32318881,103180.0,103170.0,8.62e-05]
[1734288391853,0.12935281,103180.0,103170.0,0.20807351]
[1734288392225,0.12935281,103180.0,103170.0,0.40192751]
[1734288392432,0.12935281,103180.0,103170.0,0.20807351]
[1734288393369,0.32318881,103180.0,103170.0,0.20807351]
[1734288393973,0.32318881,103180.0,103170.0,0.1500862]
[1734288396587,0.12935281,103180.0,103170.0,0.20807351]
[1734288397001,0.12935281,103180.0,103170.0,0.40192751]
[1734288397672,0.12935281,103180.0,103170.0,0.20807351]
[1734288399446,0.08325281,103180.0,103170.0,0.20807351]
[1734288400729,0.08325281,103180.0,103170.0,0.1500862]
[1734288400928,0.27708881,103180.0,103170.0,0.1500862]
[1734288401910,0.27708881,103180.0,103170.0,0.20807351]
[1734288407358,0.27708881,103180.0,103170.0,0.1500862]
[1734288409147,0.08325281,103180.0,103170.0,0.20807351]
[1734288409556,0.08325281,103180.0,103170.0,0.40192751]
[1734288410108,0.00385281,103180.0,103170.0,3.09910748]
[1734288410314,0.00385281,103180.0,103170.0,3.53901511]
[1734288410522,0.00385281,103180.0,103170.0,3.8433699]
[1734288410928,0.00385281,103180.0,103170.0,3.76283214]
[1734288411124,0.00385281,103180.0,103170.0,5.73212214]
[1734288411328,0.00385281,103180.0,103170.0,5.55820512]
[1734288412834,0.00385281,103180.0,103170.0,5.55645568]
[1734288413450,0.00385281,103180.0,103170.0,5.03133897]
[1734288413672,0.0001724,103180.0,103170.0,5.56794575]
[1734288414023,0.00345526,103180.0,103170.0,5.56788806]
[1734288414704,0.00345526,103180.0,103170.0,5.95008806]
[1734288415151,0.00345526,103180.0,103170.0,5.9696449]
[1734288415530,0.00345526,103180.0,103170.0,6.1436311]
[1734288416414,0.00345526,103180.0,103170.0,6.11874698]
[1734288418227,0.00345526,103180.0,103170.0,6.11864496]
[1734288419938,0.00345526,103180.0,103170.0,6.24908543]
[1734288421300,0.00345526,103180.0,103170.0,6.28782343]
[1734288422205,0.00345526,103180.0,103170.0,4.78578243]
[1734288422353,0.00345526,103180.0,103170.0,4.70540043]
[1734288422558,0.00345526,103180.0,103170.0,4.59208343]
[1734288424864,0.00345526,103180.0,103170.0,4.45549612]
[1734288425065,0.00345526,103180.0,103170.0,1.61309905]
[1734288425184,0.08385526,103180.0,103170.0,1.43914446]
[1734288425388,0.0805724,103180.0,103170.0,1.43914446]
[1734288425844,0.08385755,103180.0,103170.0,1.43914446]
[1734288426614,0.08385755,103180.0,103170.0,1.05694446]
[1734288432366,0.08385755,103180.0,103170.0,0.88866057]
[1734288432571,0.08385755,103180.0,103170.0,0.94664788]
[1734288432773,0.27769355,103180.0,103170.0,0.94664788]
[1734288433495,0.27769355,103180.0,103170.0,0.94792341]
[1734288434050,0.27769355,103180.0,103170.0,0.63885499]
[1734288434477,0.27769355,103180.0,103170.0,0.42544415]
[1734288434680,0.27769355,103180.0,103170.0,0.23701637]
[1734288434910,0.27769355,103180.0,103170.0,0.29500368]
[1734288436109,0.27746555,103180.0,103170.0,0.29500368]
[1734288437606,0.27746555,103180.0,103170.0,0.23701637]
[1734288438018,0.27746555,103180.0,103170.0,0.1500862]
[1734288446364,0.32656555,103180.0,103170.0,0.1500862]
[1734288446948,0.32673795,103180.0,103170.0,0.1500862]
[1734288457628,0.32673795,103180.0,103170.0,8.62e-05]
[1734288459415,0.42579198,103180.0,103170.0,8.62e-05]
[1734288461092,0.48377929,103180.0,103170.0,8.62e-05]
[1734288461298,0.42579198,103180.0,103170.0,8.62e-05]
[1734288479430,0.27763795,103180.0,103170.0,8.62e-05]
[1734288486682,0.193854,103170.0,103150.0,0.68540334]
[1734288486894,0.193854,103170.0,103150.0,1.0976125]
[1734288487103,0.00336659,103160.0,103150.0,0.9037355]
[1734288487484,0.00336659,103160.0,103150.0,0.37299155]
[1734288487708,0.00336659,103160.0,103150.0,0.59069587]
[1734288487911,0.00336659,103160.0,103150.0,0.90385797]
[1734288488544,0.00336659,103160.0,103150.0,0.93236987]
[1734288488940,0.00336659,103160.0,103150.0,1.08236987]
[1734288489143,0.00336659,103160.0,103150.0,0.63858518]
[1734288489269,0.00336659,103160.0,103150.0,0.63503744]
[1734288489469,0.00336659,103160.0,103150.0,0.61007328]
[1734288489714,0.00336659,103160.0,103150.0,0.68917328]
[1734288489949,0.00336659,103160.0,103150.0,0.67401794]
[1734288492171,0.00336659,103160.0,103150.0,0.67410414]
[1734288493559,0.00336659,103160.0,103150.0,0.80472673]
[1734288496590,0.00336659,103160.0,103150.0,1.29252886]
[1734288497385,0.00336659,103160.0,103150.0,1.51033747]
[1734288497741,0.19723959,103160.0,103150.0,1.07340126]
[1734288497930,0.27603959,103160.0,103150.0,0.85559265]
[1734288498137,0.27603959,103160.0,103150.0,0.68134576]
[1734288498538,0.27603959,103160.0,103150.0,0.29519695]
[1734288503512,0.08233899,103160.0,103150.0,0.29519695]
[1734288503734,0.08233899,103160.0,103150.0,0.61977411]
[1734288503946,0.00353899,103160.0,103150.0,0.93355548]
[1734288505026,0.00353899,103160.0,103150.0,1.10780237]
[1734288505266,0.00353899,103160.0,103150.0,1.2849564]
[1734288505466,0.00353899,103160.0,103150.0,1.54906501]
[1734288505672,0.00353899,103160.0,103150.0,1.60705232]
[1734288506510,0.00353899,103160.0,103150.0,0.96928659]
[1734288507127,0.00353899,103160.0,103150.0,0.91129928]
[1734288508488,0.00353899,103160.0,103150.0,1.06129928]
[1734288509302,0.00353899,103160.0,103150.0,1.11928659]
[1734288509513,0.00353899,103160.0,103150.0,1.06129928]
[1734288510999,0.00353899,103160.0,103150.0,1.11928659]
[1734288514227,0.00353899,103160.0,103150.0,1.29353348]
[1734288514435,0.00353899,103160.0,103150.0,1.11928659]
[1734288514851,0.00353899,103160.0,103150.0,1.29353348]
[1734288515271,0.00353899,103160.0,103150.0,1.29361968]
[1734288515498,0.00353899,103160.0,103150.0,1.15753237]
[1734288516519,0.00353899,103160.0,103150.0,1.37534098]
[1734288517559,0.00353899,103160.0,103150.0,1.05634433]
[1734288518014,0.00353899,103160.0,103150.0,1.25023633]
[1734288519414,0.00353899,103160.0,103150.0,1.02968944]
[1734288520115,0.00353899,103160.0,103150.0,0.58813342]
[1734288522599,0.00353899,103160.0,103150.0,0.58813795]
[1734288523567,0.07983899,103160.0,103150.0,0.58813795]
[1734288524657,0.07983899,103160.0,103150.0,0.60752795]
[1734288527544,0.07983899,103160.0,103150.0,1.21976842]
[1734288529339,0.07983899,103160.0,103150.0,0.86883508]
[1734288529511,0.07983899,103160.0,103150.0,0.92682239]
[1734288529730,0.07983899,103160.0,103150.0,0.75258556]
[1734288531587,0.07983899,103160.0,103150.0,0.75277839]
[1734288533210,0.07983899,103160.0,103150.0,0.75278073]
[1734288536344,0.07983899,103160.0,103150.0,0.94667273]
[1734288538132,0.00353899,103160.0,103150.0,1.20381278]
[1734288538337,0.00353899,103160.0,103150.0,1.42162811]
[1734288538565,0.00353899,103160.0,103150.0,1.33450198]
[1734288539189,0.00353899,103160.0,103150.0,1.2516142]
[1734288539389,0.00353899,103160.0,103150.0,1.3387345]
[1734288540646,0.00353899,103160.0,103150.0,1.33770649]
[1734288540852,0.083,103170.0,103160.0,0.20798731]
[1734288540853,0.03653899,103170.0,103160.0,0.20798731]
[1734288545656,0.08473899,103170.0,103160.0,0.15]
[1734288545858,0.27859299,103170.0,103160.0,0.15]
[1734288546159,0.27859299,103170.0,103160.0,0.20798731]
[1734288547800,0.27859299,103170.0,103110.0,1.21497959]
[1734288548023,0.1259,103160.0,103120.0,0.08663218]
[1734288548237,0.1788939,103160.0,103140.0,0.25188631]
[1734288548443,0.1788939,103160.0,103140.0,0.29295303]
[1734288548649,0.1788939,103160.0,103140.0,0.35094034]
[1734288548845,0.58303716,103150.0,103140.0,0.35094034]
[1734288549000,0.34032196,103150.0,103140.0,0.29295303]
[1734288549659,0.07897106,103150.0,103140.0,0.35094034]
[1734288549863,0.07874506,103150.0,103140.0,0.35094034]
[1734288550074,0.12874506,103150.0,103130.0,0.387831]
[1734288550284,0.32172998,103140.0,103130.0,0.54487234]
[1734288550498,0.39009596,103150.0,103130.0,1.24257134]
[1734288550707,0.32475488,103140.0,103130.0,0.54487234]
[1734288550904,0.00305127,103140.0,103130.0,1.04671834]
[1734288551117,0.00305127,103140.0,103130.0,1.05131647]
[1734288551523,0.00305127,103140.0,103130.0,1.07150856]
[1734288553558,0.00305127,103140.0,103130.0,0.79538656]
[1734288553771,0.22084967,103140.0,103130.0,0.79538656]
[1734288555882,0.22084967,103140.0,103130.0,0.80588638]
[1734288556110,0.22084967,103140.0,103130.0,0.32858428]
[1734288556321,0.22084967,103140.0,103130.0,0.52250028]
[1734288556945,0.30174967,103140.0,103130.0,0.23419084]
[1734288557126,0.30174967,103140.0,103130.0,0.03069191]
[1734288557335,0.08395127,103140.0,103130.0,0.03069191]
[1734288560981,0.08395127,103140.0,103130.0,0.03077811]
[1734288561192,0.08412367,103140.0,103130.0,0.03077811]
[1734288562024,0.08412367,103140.0,103120.0,0.06258544]
[1734288562198,0.53909506,103130.0,103120.0,0.26705038]
[1734288562405,0.22070873,103130.0,103120.0,2.93369786]
[1734288562608,0.22070873,103130.0,103120.0,3.12763586]
[1734288562969,0.3948353,103130.0,103120.0,3.12763586]
[1734288563148,0.3948353,103130.0,103120.0,3.27763586]
[1734288563328,0.3948353,103130.0,103120.0,3.28837042]
[1734288563791,0.3948353,103130.0,103120.0,2.85420042]
[1734288564640,0.3948353,103130.0,103120.0,2.87351585]
[1734288564819,0.3948353,103130.0,103120.0,1.12748179]
[1734288565057,0.3948353,103130.0,103120.0,1.19006723]
[1734288565240,0.2206996,103130.0,103120.0,1.20006723]
[1734288565448,0.2206996,103130.0,103120.0,1.13748179]
[1734288565588,0.16342658,103130.0,103120.0,1.13748179]
[1734288565800,0.16342658,103130.0,103120.0,1.12621941]
[1734288566209,0.16342658,103130.0,103120.0,0.97621941]
[1734288566414,0.00272698,103130.0,103120.0,0.97621941]
[1734288566800,0.08132698,103130.0,103120.0,0.96555341]
[1734288567004,0.08132698,103130.0,103120.0,0.48479399]
[1734288567228,0.08132698,103130.0,103120.0,0.40921099]
[1734288568983,0.03132698,103130.0,103120.0,0.54370699]
[1734288570550,0.03132698,103130.0,103120.0,0.60629243]
[1734288570985,0.03132698,103130.0,103120.0,0.06489243]
[1734288571167,0.03132698,103130.0,103120.0,0.06258544]
[1734288571370,0.20537229,103130.0,103110.0,0.472867]
[1734288571577,0.30456583,103120.0,103110.0,0.46004726]
[1734288571791,0.30456583,103120.0,103110.0,1.57446226]
[1734288572023,0.30456583,103120.0,103110.0,1.60699263]
[1734288572841,0.30456583,103120.0,103110.0,1.60707883]
[1734288573043,0.30456583,103120.0,103110.0,1.54449339]
[1734288573253,0.30456583,103120.0,103110.0,0.49266383]
[1734288573573,0.30456583,103120.0,103110.0,2.69415983]
[1734288573784,0.30456583,103120.0,103110.0,2.26291983]
[1734288573971,0.30456583,103120.0,103110.0,2.45045568]
[1734288574172,0.21753322,103120.0,103110.0,2.49705568]
[1734288576835,0.21748982,103120.0,103110.0,2.30309768]
[1734288577076,0.21748982,103120.0,103110.0,1.82428312]
[1734288577428,0.21748982,103120.0,103110.0,2.01823912]
[1734288577831,0.21748982,103120.0,103110.0,2.03779068]
[1734288578434,0.08699593,103120.0,103110.0,2.03779068]
[1734288578858,0.21748982,103120.0,103110.0,2.03779068]
[1734288579154,0.08699593,103120.0,103110.0,2.03779068]
[1734288581007,0.08699593,103120.0,103110.0,2.05064895]
[1734288584722,0.08699593,103120.0,103110.0,5.58272114]
[1734288585141,0.08716833,103120.0,103110.0,5.73272114]
[1734288587145,0.39165408,103120.0,103110.0,5.73272114]
[1734288589266,0.39165408,103120.0,103110.0,5.74272114]
[1734288589785,0.52214797,103120.0,103110.0,25.74272114]
[1734288590927,0.52214797,103120.0,103110.0,25.60935388]
[1734288591358,0.52214797,103120.0,103110.0,25.5980915]
[1734288592591,0.52214797,103120.0,103110.0,25.5850325]
[1734288593492,0.39204845,103120.0,103110.0,25.5950325]
[1734288593692,0.39204845,103120.0,103110.0,25.45729616]
[1734288593868,0.30499186,103120.0,103110.0,25.55635019]
[1734288594226,0.30499186,103120.0,103110.0,24.69883419]
[1734288595496,0.30499186,103120.0,103110.0,24.68042319]
[1734288597783,0.30499186,103120.0,103110.0,24.61744219]
[1734288597993,0.30499186,103120.0,103110.0,24.47209019]
[1734288598454,0.52270078,103120.0,103110.0,24.46143119]
[1734288598684,0.59890078,103120.0,103110.0,21.85592872]
[1734288598903,0.46824845,103120.0,103110.0,21.24695916]
[1734288599752,0.46824845,103120.0,103110.0,21.09695916]
[1734288599960,0.59896967,103120.0,103110.0,22.12631872]
[1734288600164,0.46838718,103120.0,103110.0,20.89809016]
[1734288600588,0.29408132,103120.0,103110.0,20.89809016]
[1734288601277,0.46839593,103120.0,103110.0,20.35669016]
[1734288601476,0.51439593,103120.0,103110.0,20.35669016]
[1734288601685,0.51439593,103120.0,103110.0,20.29410472]
[1734288601887,0.34008132,103120.0,103110.0,19.55042418]
[1734288602240,0.33738132,103120.0,103110.0,19.55042418]
[1734288603847,0.33738132,103120.0,103110.0,19.30037101]
[1734288604260,0.51158964,103120.0,103110.0,19.30037101]
[1734288604893,0.51158964,103120.0,103110.0,19.31355659]
[1734288606931,0.56158964,103120.0,103110.0,19.31355659]
[1734288608221,0.56158964,103120.0,103110.0,19.31364279]
[1734288608448,0.56176204,103120.0,103110.0,19.31364279]
[1734288609945,0.47463661,103120.0,103110.0,19.31364279]
[1734288611238,0.56176204,103120.0,103110.0,19.30045721]
[1734288613497,0.90476407,103120.0,103110.0,19.30045721]
[1734288613707,0.73055575,103120.0,103110.0,19.15045721]
[1734288613920,0.77409753,103120.0,103110.0,19.15045721]
[1734288614375,0.72409753,103120.0,103110.0,19.15045721]
[1734288614593,0.77195547,103120.0,103110.0,19.15045721]
[1734288614808,0.76933931,103120.0,103110.0,19.15045721]
[1734288615020,0.77195541,103120.0,103110.0,19.15045721]
[1734288616548,0.437869,103130.0,103110.0,19.15045721]
[1734288616775,0.81770672,103160.0,103150.0,16.22557339]
[1734288616979,0.91892536,103160.0,103150.0,15.46724752]
[1734288617115,0.58892536,103160.0,103150.0,14.85074752]
[1734288617966,0.66253951,103160.0,103150.0,14.85074752]
[1734288618587,0.66253951,103160.0,103150.0,14.79078194]
[1734288619143,0.66253951,103160.0,103150.0,14.67940538]
[1734288619345,0.66253951,103160.0,103150.0,14.66624867]
[1734288619958,0.66253951,103160.0,103150.0,14.66633487]
[1734288620167,0.76176594,103160.0,103150.0,14.62298587]
[1734288620372,0.76176594,103160.0,103150.0,14.58420787]
[1734288620577,0.76176594,103160.0,103150.0,14.56481887]
[1734288621656,1.0549544,103160.0,103150.0,14.56481887]
[1734288622440,1.0599037,103160.0,103150.0,13.92559126]
[1734288623276,1.0599037,103160.0,103150.0,13.90620226]
[1734288623907,1.0599037,103160.0,103150.0,13.87678909]
[1734288624138,1.0599037,103160.0,103150.0,13.81862209]
[1734288624377,1.0599037,103160.0,103150.0,13.74106609]
[1734288624581,1.0599037,103160.0,103150.0,13.72167709]
[1734288625038,0.76677607,103160.0,103150.0,13.18027709]
[1734288630463,0.76677607,103160.0,103150.0,13.15508737]
[1734288631063,0.76677607,103160.0,103150.0,12.61368737]
[1734288631064,1.02714256,103160.0,103150.0,12.61368737]
[1734288631890,1.03018211,103160.0,103150.0,12.61368737]
[1734288632448,1.03018211,103160.0,103150.0,12.59139984]
[1734288634155,1.03019065,103160.0,103150.0,12.59139984]
[1734288634360,0.76981562,103160.0,103150.0,12.59139984]
[1734288635204,1.03020601,103160.0,103150.0,12.10658071]
[1734288635820,0.93115198,103160.0,103150.0,12.10658071]
[1734288637145,0.93115198,103160.0,103150.0,11.56518071]
[1734288640988,0.82925198,103160.0,103150.0,11.56518071]
[1734288641867,0.76666654,103160.0,103150.0,11.56518071]
[1734288642082,0.82925198,103160.0,103150.0,11.56518071]
[1734288642737,0.92830601,103160.0,103150.0,11.56518071]
[1734288642938,0.82952711,103160.0,103150.0,11.56518071]
[1734288643145,0.82952711,103160.0,103150.0,11.02378071]
[1734288644550,0.72952711,103160.0,103150.0,11.09988071]
[1734288644840,0.37826602,103160.0,103150.0,11.09988071]
[1734288645027,0.44085146,103160.0,103150.0,11.09988071]
[1734288645977,0.46385146,103160.0,103150.0,11.09988071]
[1734288646189,0.47826602,103160.0,103150.0,11.09988071]
[1734288646452,0.59085146,103160.0,103150.0,11.14768071]
[1734288646590,0.75821124,103160.0,103150.0,11.14768071]
[1734288646967,0.60821124,103160.0,103150.0,11.14768071]
[1734288647167,0.65821124,103160.0,103150.0,11.14768071]
[1734288647379,0.60821124,103160.0,103150.0,11.14768071]
[1734288647587,0.65821124,103160.0,103150.0,11.14768071]
[1734288647815,0.68121124,103160.0,103150.0,11.14768071]
[1734288648018,0.66228452,103160.0,103150.0,11.14768071]
[1734288648228,0.78618225,103160.0,103150.0,11.14768071]
[1734288648726,0.83618225,103160.0,103150.0,11.14768071]
[1734288648932,0.78618225,103160.0,103150.0,11.14768071]
[1734288651918,0.61228452,103160.0,103150.0,11.14768071]
[1734288652178,1.15368452,103160.0,103150.0,11.14768071]
[1734288652805,1.09109908,103160.0,103150.0,11.14768071]
[1734288653013,1.15368452,103160.0,103150.0,11.14768071]
[1734288653219,0.93632474,103160.0,103150.0,11.14768071]
[1734288653430,1.19699026,103160.0,103150.0,11.14768071]
[1734288654452,0.93632474,103160.0,103150.0,11.14768071]
[1734288655740,1.24699026,103160.0,103150.0,11.14768071]
[1734288657005,1.34604429,103160.0,103150.0,11.14768071]
[1734288657219,1.24699026,103160.0,103150.0,11.14768071]
[1734288657851,1.24699026,103160.0,103150.0,10.94535685]
[1734288657852,0.98632474,103160.0,103150.0,10.94535685]
[1734288658027,0.38630912,103170.0,103160.0,10.03736977]
[1734288658243,0.80877763,103170.0,103160.0,10.03736977]
[1734288659011,0.54811211,103170.0,103160.0,10.03736977]
[1734288659287,0.80877763,103170.0,103160.0,10.03736977]
[1734288660094,0.54811211,103170.0,103160.0,10.03736977]
[1734288660305,0.55172051,103170.0,103160.0,10.03736977]
[1734288662011,0.56851789,103170.0,103160.0,10.03736977]
[1734288662430,0.66757192,103170.0,103160.0,10.03736977]
[1734288662841,0.56851789,103170.0,103160.0,10.03736977]
[1734288663935,0.82941358,103170.0,103160.0,10.03736977]
[1734288664350,0.56851789,103170.0,103160.0,10.03736977]
[1734288664536,0.82941358,103170.0,103160.0,10.03736977]
[1734288665140,0.56851789,103170.0,103160.0,10.03736977]
[1734288668241,1.01789206,103170.0,103160.0,10.03736977]
[1734288668653,0.56851789,103170.0,103160.0,10.03736977]
[1734288669082,0.86199825,103170.0,103160.0,10.03736977]
[1734288669724,0.82941289,103170.0,103160.0,9.5526175]
[1734288672598,0.82941289,103170.0,103160.0,9.52184656]
[1734288673381,0.67051789,103170.0,103160.0,9.31640599]
[1734288673585,0.76957192,103170.0,103160.0,9.23362105]
[1734288674320,0.7746268,103170.0,103160.0,9.21423405]
[1734288674534,0.7746268,103170.0,103160.0,9.13668605]
[1734288675483,0.77746771,103170.0,103160.0,9.03975105]
[1734288676142,0.77746771,103170.0,103160.0,9.03983725]
[1734288676350,0.77746771,103170.0,103160.0,9.02045025]
[1734288676569,0.77746771,103170.0,103160.0,8.94290225]
[1734288676775,0.77746771,103170.0,103160.0,8.9086643]
[1734288677234,0.77746771,103170.0,103160.0,8.9006643]
[1734288677442,0.77746771,103170.0,103160.0,8.69500399]
[1734288678309,0.77746771,103170.0,103160.0,8.67561699]
[1734288678506,0.77746771,103170.0,103160.0,8.59806899]
[1734288679373,1.22705276,103170.0,103160.0,8.06838199]
[1734288679576,0.77746771,103170.0,103160.0,7.99083399]
[1734288680418,0.77746771,103170.0,103160.0,7.97144699]
[1734288680835,0.77746771,103170.0,103160.0,7.93267299]
[1734288681042,0.77746771,103170.0,103160.0,7.91328599]
[1734288681219,0.77746771,103170.0,103160.0,7.85589899]
[1734288681428,0.77746771,103170.0,103160.0,7.83651199]
[1734288681638,0.77746771,103170.0,103160.0,7.79773799]
[1734288681839,0.77746771,103170.0,103160.0,7.75896399]
[1734288682295,0.77746771,103170.0,103160.0,7.70869699]
[1734288682506,0.77746771,103170.0,103160.0,7.63114899]
[1734288682947,0.77746771,103170.0,103160.0,7.62714899]
[1734288683408,0.77746771,103170.0,103160.0,7.53021399]
[1734288684453,0.77746771,103170.0,103160.0,7.51082699]
[1734288684686,1.22698332,103170.0,103160.0,6.87201115]
[1734288684884,0.77746771,103170.0,103160.0,6.85813115]